fUST/lending_fUST_20250314
["ID","MTS","AMOUNT","RATE_DAILY","PERIOD"]
[356073423,1741881757976,-206.59990355,0.00010957,2]
[356073424,1741881758000,-500.0,0.00010957,2]
[356073425,1741881758023,-300.0,0.00010957,2]
[356073426,1741881758046,-500.0,0.00010958,2]
[356073427,1741881758071,-583.48636231,0.00010958,2]
[356073428,1741881758092,-500.0,0.00010958,2]
[356073429,1741881758114,-500.0,0.00010958,2]
[356073430,1741881758135,-500.0,0.00010958,2]
[356073431,1741881758157,-500.0,0.00010958,2]
[356073432,1741881758179,-500.0,0.00010958,2]
[356073433,1741881758204,-500.0,0.00010958,2]
[356073434,1741881758227,-500.0,0.00010958,2]
[356073435,1741881758249,-170.35643712,0.00010958,2]
[356073436,1741881758271,-6184.06,0.00010959,2]
[356073437,1741881758293,-5582.0,0.00010959,2]
[356073438,1741881758317,-4651.66,0.00010959,2]
[356073439,1741881758340,-4651.66,0.00010959,2]
[356073440,1741881758363,-3101.11,0.00010959,2]
[356073441,1741881758385,-2584.26,0.00010959,2]
[356073442,1741881758408,-2584.26,0.00010959,2]
[356073443,1741881758430,-1722.84,0.00010959,2]
[356073444,1741881758452,-1435.7,0.00010959,2]
[356073445,1741881758473,-1196.41,0.00010959,2]
[356073446,1741881758495,-997.01,0.00010959,2]
[356073447,1741881758517,-548.58729702,0.00010959,2]
[356073448,1741882021904,160.41807631,0.00015,120]
[356073449,1741882021931,380.13192369,0.00015,120]
[356073451,1741882040085,-500.0,0.00010958,2]
[356073452,1741882040110,-500.0,0.00010958,2]
[356073453,1741882040135,-425.8980148,0.00010958,2]
[356073454,1741882040161,-300.0,0.00010958,2]
[356073455,1741882040186,-313.43,0.00010959,2]
[356073456,1741882040211,-687.17,0.00010959,2]
[356073457,1741882040237,-572.65,0.00010959,2]
[356073458,1741882040262,-477.2,0.00010959,2]
[356073459,1741882040288,-397.67,0.00010959,2]
[356073460,1741882040312,-331.39,0.00010959,2]
[356073461,1741882040341,-276.16,0.00010959,2]
[356073462,1741882040366,-420.0,0.00012042,2]
[356073463,1741882040391,-868.1966137,0.00012247,2]
[356073464,1741882040415,-399.0,0.00012887,2]
[356073465,1741882040438,-399.0,0.00012887,2]
[356073466,1741882040460,-2000.0,0.000129,2]
[356073467,1741882040486,-500.0,0.00012999,2]
[356073468,1741882040508,-500.0,0.00012999,2]
[356073469,1741882040532,-302.44700531,0.00012999,2]
[356073470,1741882040554,-500.0,0.00012999,2]
[356073471,1741882040576,-500.0,0.00012999,2]
[356073472,1741882040602,-500.0,0.00012999,2]
[356073473,1741882040624,-500.0,0.00012999,2]
[356073474,1741882040647,-419.24950598,0.00012999,2]
[356073475,1741882040668,-2410.53886021,0.00013,3]
[356073528,1741882232096,-230.13,0.00010959,2]
[356073530,1741882232106,-191.78,0.00010959,2]
[356073532,1741882232115,-159.82,0.00010959,2]
[356073534,1741882232125,-799.1,0.00010959,2]
[356073536,1741882232134,-300.97123,0.00011846,2]
[356073538,1741882232144,-300.0,0.00012999,2]
[356073539,1741882232154,-8050.48973197,0.00013,3]
[356073542,1741882232164,-500.0,0.00013001,2]
[356073543,1741882232174,-500.0,0.00013001,2]
[356073546,1741882232184,-500.0,0.00013001,2]
[356073547,1741882232193,-500.0,0.00013001,2]
[356073549,1741882232203,-500.0,0.00013001,2]
[356073551,1741882232213,-500.0,0.00013001,2]
[356073553,1741882232223,-500.0,0.00013001,2]
[356073555,1741882232232,-500.0,0.00013001,2]
[356073557,1741882232242,-500.0,0.00013001,2]
[356073559,1741882232252,-500.0,0.00013001,2]
[356073561,1741882232263,-176.64,0.00013001,2]
[356073563,1741882232272,-381.117,0.00013091,2]
[356073565,1741882232282,-399.0,0.00013091,2]
[356073566,1741882232291,-150.0,0.00013093,2]
[356073568,1741882232300,-1916.0,0.00013093,2]
[356073570,1741882232310,-540.0,0.00013093,2]
[356073572,1741882232319,-2271.0,0.00013093,2]
[356073596,1741882232328,-153.951,0.000132,2]
[356073598,1741882232567,-186.9182956,0.000132,2]
[356073600,1741882232577,-834.77361048,0.00013368,2]
[356073602,1741882232586,-159.89199502,0.0001337,2]
[356073604,1741882232596,-186.9182956,0.000134,2]
[356073606,1741882232605,-1675.1442466,0.00013424,2]
[356073608,1741882232615,-1561.38068086,0.00013497,2]
[356073610,1741882232625,-268.42864854,0.00013498,2]
[356073612,1741882232634,-186.9182956,0.000135,2]
[356073614,1741882232643,-268.42864852,0.00013523,2]
[356073616,1741882232653,-152.0,0.00013536,2]
[356073618,1741882232662,-268.42864852,0.00013548,2]
[356073620,1741882232671,-4189.58030684,0.00013572,3]
[356073622,1741882232681,-268.42864852,0.00013573,2]
[356073624,1741882232691,-499.99,0.00013597,2]
[356073626,1741882232700,-500.01,0.00013597,2]
[356073628,1741882232710,-19983.44599047,0.00013598,2]
[356073630,1741882232719,-2379.91687052,0.00013598,2]
[356073632,1741882232729,-152.208,0.00013598,2]
[356073634,1741882232739,-151.0,0.00013598,2]
[356073636,1741882232748,-152.208,0.00013598,2]
[356073638,1741882232760,-151.0,0.00013598,2]
[356073639,1741882232770,-268.42864852,0.00013598,2]
[356073641,1741882232781,-3000.0,0.00013598,2]
[356073643,1741882232790,-67321.5394343,0.00013598,2]
[356074264,1741882241717,-500.0,0.00012999,2]
[356074266,1741882241726,-561.71290371,0.00012999,2]
[356074268,1741882241736,-543.47465419,0.00012999,2]
[356074270,1741882241745,-500.0,0.00012999,2]
[356074272,1741882241755,-500.0,0.00012999,2]
[356074274,1741882241764,-9.86114216,0.00013598,2]
[356074362,1741882242559,-154668.59942354,0.00013598,2]
[356074364,1741882242568,-500.0,0.00013598,2]
[356074366,1741882242578,-269.58922224,0.00013673,2]
[356074369,1741882242588,-500.0,0.00013673,2]
[356074371,1741882242597,-513.81120663,0.00013673,2]
[356074375,1741882242608,-500.0,0.00013673,2]
[356074378,1741882242617,-500.0,0.00013673,2]
[356074381,1741882242627,-500.0,0.00013673,2]
[356074382,1741882242636,-500.0,0.00013673,2]
[356074384,1741882242646,-618.80287791,0.00013673,2]
[356074388,1741882242656,-500.0,0.00013673,2]
[356074392,1741882242666,-500.0,0.00013673,2]
[356074396,1741882242676,-571.08097852,0.00013673,2]
[356074399,1741882242686,-500.0,0.00013673,2]
[356074401,1741882242695,-500.0,0.00013673,2]
[356074403,1741882242705,-500.0,0.00013673,2]
[356074405,1741882242715,-500.0,0.00013673,2]
[356074407,1741882242724,-500.0,0.00013673,2]
[356074409,1741882242735,-500.0,0.00013673,2]
[356074411,1741882242744,-500.0,0.00013673,2]
[356074413,1741882242754,-500.0,0.00013673,2]
[356074415,1741882242765,-500.0,0.00013673,2]
[356074416,1741882242775,-500.0,0.00013673,2]
[356074425,1741882242785,-500.0,0.00013673,2]
[356074427,1741882243007,-500.0,0.00013673,2]
[356074429,1741882243017,-500.0,0.00013673,2]
[356074431,1741882243026,-500.0,0.00013673,2]
[356074433,1741882243036,-500.0,0.00013673,2]
[356074435,1741882243045,-500.0,0.00013673,2]
[356074437,1741882243055,-500.0,0.00013673,2]
[356074439,1741882243065,-461.18882117,0.00013673,2]
[356074736,1741882246002,-38.81117883,0.00013673,2]
[356074738,1741882246012,-500.0,0.00013673,2]
[356074740,1741882246023,-500.0,0.00013673,2]
[356074742,1741882246034,-557.34841323,0.00013673,2]
[356074744,1741882246044,-500.0,0.00013673,2]
[356074745,1741882246054,-500.0,0.00013673,2]
[356074747,1741882246063,-500.0,0.00013673,2]
[356074749,1741882246073,-500.0,0.00013673,2]
[356074751,1741882246082,-500.0,0.00013673,2]
[356074752,1741882246091,-500.0,0.00013673,2]
[356074753,1741882246101,-500.0,0.00013673,2]
[356074754,1741882246110,-500.0,0.00013673,2]
[356074755,1741882246120,-507.77122981,0.0001369,2]
[356074756,1741882246129,-500.0,0.00013698,2]
[356074757,1741882246139,-500.0,0.00013698,2]
[356074758,1741882246148,-500.0,0.00013698,2]
[356074759,1741882246158,-209.88528628,0.00013698,2]
[356074760,1741882246167,-529.98,0.00013698,2]
[356074761,1741882246177,-500.0,0.00013698,2]
[356074762,1741882246187,-787.7,0.00013698,2]
[356074763,1741882246196,-503.32886385,0.00013698,2]
[356074764,1741882246205,-500.0,0.00013698,2]
[356074765,1741882246215,-616.13373104,0.00013698,2]
[356074766,1741882246225,-500.0,0.00013698,2]
[356074767,1741882246235,-588.43,0.00013698,2]
[356074768,1741882246244,-500.0,0.00013698,2]
[356074769,1741882246254,-500.0,0.00013698,2]
[356074770,1741882246263,-500.0,0.00013698,2]
[356074771,1741882246273,-509.29647661,0.00013698,2]
[356074772,1741882246283,-601.18,0.00013698,2]
[356074773,1741882246293,-500.0,0.00013698,2]
[356074774,1741882246303,-151.0,0.00013698,2]
[356074775,1741882246313,-516.69996887,0.00013698,2]
[356074776,1741882246322,-500.0,0.00013698,2]
[356074777,1741882246333,-500.0,0.00013698,2]
[356074778,1741882246343,-500.0,0.00013698,2]
[356074779,1741882246356,-188.0,0.00013698,2]
[356074780,1741882246365,-500.0,0.00013698,2]
[356074781,1741882246375,-500.0,0.00013698,2]
[356074782,1741882246385,-500.0,0.00013698,2]
[356074783,1741882246397,-500.0,0.00013698,2]
[356074785,1741882246407,-509.90071893,0.00013698,2]
[356074787,1741882246417,-500.0,0.00013698,2]
[356074788,1741882246427,-500.0,0.00013698,2]
[356074790,1741882246437,-500.0,0.00013698,2]
[356074792,1741882246447,-500.0,0.00013698,2]
[356074794,1741882246457,-500.0,0.00013698,2]
[356074795,1741882246468,-500.0,0.00013698,2]
[356074797,1741882246477,-402.71857577,0.00013698,2]
[356074798,1741882246487,-500.0,0.00013698,2]
[356074800,1741882246496,-500.0,0.00013698,2]
[356074802,1741882246506,-500.0,0.00013698,2]
[356074804,1741882246516,-515.23288039,0.00013698,2]
[356074805,1741882246526,-1400.01,0.00013698,2]
[356074808,1741882246542,-500.0,0.00013698,2]
[356074810,1741882246556,-500.0,0.00013698,2]
[356074811,1741882246569,-500.0,0.00013698,2]
[356074813,1741882246579,-500.0,0.00013698,2]
[356074815,1741882246589,-500.0,0.00013698,2]
[356074817,1741882246602,-536.2,0.00013698,2]
[356074819,1741882246614,-500.0,0.00013698,2]
[356074820,1741882246628,-500.0,0.00013698,2]
[356074822,1741882246638,-500.0,0.00013698,2]
[356074824,1741882246648,-500.0,0.00013698,2]
[356074826,1741882246659,-505.59494341,0.00013698,2]
[356074828,1741882246670,-505.45708474,0.00013698,2]
[356074830,1741882246680,-268.82627915,0.00013698,2]
[356074831,1741882246691,-500.0,0.00013698,2]
[356074832,1741882246701,-500.0,0.00013698,2]
[356074833,1741882246711,-580.84800918,0.00013698,2]
[356074834,1741882246721,-500.0,0.00013698,2]
[356074835,1741882246732,-500.0,0.00013698,2]
[356074836,1741882246742,-500.0,0.00013698,2]
[356074837,1741882246752,-390.51466749,0.00013698,2]
[356074838,1741882246762,-500.0,0.00013698,2]
[356074839,1741882246774,-500.0,0.00013698,2]
[356074840,1741882246784,-500.0,0.00013698,2]
[356074841,1741882246794,-500.0,0.00013698,2]
[356074842,1741882246804,-1040.2,0.00013698,2]
[356074843,1741882246814,-500.0,0.00013698,2]
[356074844,1741882246824,-500.0,0.00013698,2]
[356074845,1741882246834,-670.06,0.00013698,2]
[356074846,1741882246844,-500.0,0.00013698,2]
[356074847,1741882246854,-500.0,0.00013698,2]
[356074848,1741882246864,-500.0,0.00013698,2]
[356074849,1741882246874,-505.83230362,0.00013698,2]
[356074850,1741882246885,-504.75591041,0.00013698,2]
[356074851,1741882246894,-151.0,0.00013698,2]
[356074852,1741882246904,-505.16326668,0.00013698,2]
[356074853,1741882246914,-500.0,0.00013698,2]
[356074854,1741882246925,-500.0,0.00013698,2]
[356074855,1741882246935,-500.0,0.00013698,2]
[356074856,1741882246946,-500.0,0.00013698,2]
[356074857,1741882246956,-500.0,0.00013698,2]
[356074858,1741882246965,-500.0,0.00013698,2]
[356074859,1741882246977,-568.93332566,0.00013698,2]
[356074860,1741882246987,-500.0,0.00013698,2]
[356074861,1741882246996,-500.0,0.00013698,2]
[356074862,1741882247006,-500.0,0.00013698,2]
[356074864,1741882247016,-500.0,0.00013698,2]
[356074865,1741882247028,-500.0,0.00013698,2]
[356074867,1741882247039,-500.0,0.00013698,2]
[356074868,1741882247052,-503.63,0.00013698,2]
[356074870,1741882247062,-500.0,0.00013698,2]
[356074871,1741882247072,-500.0,0.00013698,5]
[356074873,1741882247083,-500.0,0.00013698,2]
[356074875,1741882247092,-516.79184084,0.00013698,2]
[356074876,1741882247103,-500.0,0.00013698,2]
[356074877,1741882247113,-500.0,0.00013698,2]
[356074878,1741882247124,-382.31623537,0.00013698,2]
[356074880,1741882247134,-528.97233856,0.00013698,2]
[356074881,1741882247144,-658.35,0.00013698,2]
[356074883,1741882247154,-170.6170019,0.00013698,2]
[356074885,1741882247164,-500.0,0.00013698,2]
[356074887,1741882247174,-583.44,0.00013698,2]
[356074888,1741882247184,-587.43,0.00013698,2]
[356074890,1741882247194,-243.694832,0.00013698,2]
[356074891,1741882247204,-983.43,0.00013698,2]
[356074892,1741882247215,-565.48067843,0.00013698,2]
[356074893,1741882247224,-500.0,0.00013698,2]
[356074895,1741882247234,-500.0,0.00013698,2]
[356074897,1741882247244,-500.0,0.00013698,2]
[356074898,1741882247254,-507.08,0.00013698,2]
[356074900,1741882247264,-1605.24,0.00013698,2]
[356074902,1741882247278,-500.0,0.00013698,2]
[356074904,1741882247288,-500.0,0.00013698,2]
[356074906,1741882247297,-828.94,0.00013698,2]
[356074907,1741882247307,-500.0,0.00013698,2]
[356074909,1741882247316,-500.0,0.00013698,2]
[356074911,1741882247326,-500.0,0.00013698,2]
[356074912,1741882247336,-500.0,0.00013698,2]
[356074913,1741882247347,-199.245901,0.00013698,2]
[356074914,1741882247359,-199.245901,0.00013698,2]
[356074915,1741882247370,-199.245901,0.00013698,2]
[356074916,1741882247379,-199.245901,0.00013698,2]
[356074917,1741882247391,-199.245901,0.00013698,2]
[356074918,1741882247400,-199.245901,0.00013698,2]
[356074919,1741882247410,-199.245901,0.00013698,2]
[356074920,1741882247420,-199.245901,0.00013698,2]
[356074921,1741882247431,-199.245901,0.00013698,2]
[356074922,1741882247441,-199.245901,0.00013698,2]
[356074923,1741882247451,-203.21299305,0.00013698,2]
[356074924,1741882247461,-199.245901,0.00013698,2]
[356074925,1741882247471,-199.245901,0.00013698,2]
[356074926,1741882247480,-199.245901,0.00013698,2]
[356074927,1741882247491,-199.245901,0.00013698,2]
[356074928,1741882247501,-199.245901,0.00013698,2]
[356074929,1741882247511,-199.245901,0.00013698,2]
[356074930,1741882247524,-199.245901,0.00013698,2]
[356074931,1741882247534,-671.71,0.00013698,2]
[356074932,1741882247544,-199.245901,0.00013698,2]
[356074933,1741882247554,-199.245901,0.00013698,2]
[356074934,1741882247565,-199.245909,0.00013698,2]
[356074935,1741882247575,-500.0,0.00013698,2]
[356074936,1741882247585,-500.0,0.00013698,2]
[356074937,1741882247595,-500.0,0.00013698,2]
[356074938,1741882247605,-500.0,0.00013698,2]
[356074939,1741882247614,-500.0,0.00013698,2]
[356074940,1741882247624,-500.0,0.00013698,2]
[356074941,1741882247634,-500.0,0.00013698,2]
[356074942,1741882247644,-501.03,0.00013698,2]
[356074943,1741882247654,-500.0,0.00013698,2]
[356074944,1741882247664,-500.0,0.00013698,2]
[356074945,1741882247674,-500.0,0.00013698,2]
[356074946,1741882247684,-500.0,0.00013698,2]
[356074947,1741882247694,-762.52,0.00013698,2]
[356074948,1741882247703,-889.06,0.00013698,2]
[356074949,1741882247713,-1677.03,0.00013698,2]
[356074950,1741882247723,-500.0,0.00013698,2]
[356074951,1741882247733,-500.0,0.00013698,2]
[356074952,1741882247742,-500.0,0.00013698,2]
[356074953,1741882247752,-500.0,0.00013698,2]
[356074954,1741882247761,-1059.89,0.00013698,2]
[356074955,1741882247774,-1988.26,0.00013698,2]
[356074956,1741882247783,-500.0,0.00013698,2]
[356074957,1741882247793,-500.0,0.00013698,2]
[356074958,1741882247802,-500.0,0.00013698,2]
[356074959,1741882247811,-500.0,0.00013698,2]
[356074960,1741882247820,-500.0,0.00013698,2]
[356074961,1741882247829,-1307.68,0.00013698,2]
[356074962,1741882247839,-500.0,0.00013698,2]
[356074963,1741882247848,-500.0,0.00013698,2]
[356074964,1741882247858,-500.0,0.00013698,2]
[356074965,1741882247868,-1651.11,0.00013698,2]
[356074966,1741882247878,-962.52,0.00013698,2]
[356074967,1741882247888,-500.0,0.00013698,2]
[356074968,1741882247898,-150.27,0.00013698,2]
[356074969,1741882247908,-500.0,0.00013698,2]
[356074970,1741882247917,-2171.87,0.00013698,2]
[356074971,1741882247927,-500.0,0.00013698,2]
[356074972,1741882247938,-500.0,0.00013698,2]
[356074973,1741882247948,-500.0,0.00013698,2]
[356074974,1741882247958,-152.208,0.00013698,2]
[356074975,1741882247968,-506.19053214,0.00013698,2]
[356074976,1741882247978,-152.208,0.00013698,2]
[356074977,1741882247988,-152.208,0.00013698,2]
[356074978,1741882247998,-152.208,0.00013698,2]
[356074979,1741882248008,-152.208,0.00013698,2]
[356074980,1741882248019,-152.208,0.00013698,2]
[356074981,1741882248030,-152.208,0.00013698,2]
[356074982,1741882248040,-2731.08,0.00013698,2]
[356074983,1741882248050,-152.208,0.00013698,2]
[356074984,1741882248060,-152.208,0.00013698,2]
[356074985,1741882248070,-152.208,0.00013698,2]
[356074986,1741882248081,-152.208,0.00013698,2]
[356074987,1741882248092,-22.93894016,0.00013698,2]
[356074988,1741882248545,-129.26905984,0.00013698,2]
[356074989,1741882248555,-152.208,0.00013698,2]
[356074990,1741882248564,-152.208,0.00013698,2]
[356074991,1741882248575,-152.208,0.00013698,2]
[356074992,1741882248584,-152.208,0.00013698,2]
[356074993,1741882248599,-152.208,0.00013698,2]
[356074994,1741882248609,-152.208,0.00013698,2]
[356074995,1741882248619,-500.0,0.00013698,2]
[356074996,1741882248630,-151.0,0.00013698,2]
[356074997,1741882248640,-500.0,0.00013698,2]
[356074998,1741882248650,-500.0,0.00013698,2]
[356074999,1741882248661,-637.51,0.00013698,2]
[356075000,1741882248671,-500.0,0.00013698,2]
[356075001,1741882248681,-500.0,0.00013698,2]
[356075002,1741882248691,-500.0,0.00013698,2]
[356075003,1741882248701,-500.0,0.00013698,2]
[356075004,1741882248710,-1110.55,0.00013698,2]
[356075005,1741882248720,-500.0,0.00013698,2]
[356075006,1741882248729,-158.29422091,0.00013698,2]
[356075152,1741883433863,-393.1990326,0.00012485,2]
[356075153,1741883433874,-182.2902574,0.00012485,2]
[356075154,1741883433895,-317.7097426,0.00012485,2]
[356075155,1741883433906,-500.0,0.00012485,2]
[356075156,1741883433916,-430.43225793,0.00012485,2]
[356075157,1741883433926,-15606.7425017,0.00012486,2]
[356075158,1741883433936,-210.713863,0.00012497,2]
[356075159,1741883433947,-300.0,0.00012999,2]
[356075160,1741883433957,-5681.58157252,0.00013,4]
[356075161,1741883433974,-10617.07750502,0.00013,4]
[356075175,1741883440391,-14199.84092147,0.00013,4]
[356075176,1741883440401,-1366.20809577,0.00013061,2]
[356075177,1741883440411,-2271.0,0.00013161,2]
[356075178,1741883440421,-399.0,0.00013161,2]
[356075180,1741883440430,-1916.0,0.00013161,2]
[356075181,1741883440439,-540.0,0.00013161,2]
[356075183,1741883440449,-1256.3581849,0.00013424,2]
[356075185,1741883440459,-4326.43565378,0.00013494,2]
[356075187,1741883440469,-153.951,0.00013497,2]
[356075189,1741883440478,-37148.3659884,0.00013498,2]
[356075191,1741883440488,-186.9182956,0.000135,2]
[356075193,1741883440498,-215833.89551333,0.00013562,2]
[356075195,1741883440508,-731.12330801,0.00013598,2]
[356075198,1741883440518,-3000.0,0.00013598,2]
[356075200,1741883440529,-2000.0,0.000136,2]
[356075202,1741883440538,-186.9182956,0.000136,2]
[356075203,1741883440549,-1366.20809573,0.00013607,2]
[356075206,1741883440558,-2000.0,0.0001365,2]
[356075207,1741883440568,-500.0,0.00013673,2]
[356075209,1741883440578,-500.0,0.00013673,2]
[356075211,1741883440588,-500.0,0.00013673,2]
[356075212,1741883440598,-500.0,0.00013673,2]
[356075213,1741883440608,-500.0,0.00013673,2]
[356075214,1741883440618,-500.0,0.00013673,2]
[356075215,1741883440627,-500.0,0.00013673,2]
[356075216,1741883440637,-500.0,0.00013673,2]
[356075217,1741883440647,-500.0,0.00013673,2]
[356075218,1741883440656,-500.0,0.00013673,2]
[356075219,1741883440666,-503.48350354,0.00013673,2]
[356075220,1741883440676,-500.0,0.00013673,2]
[356075221,1741883440685,-500.0,0.00013673,2]
[356075222,1741883440695,-500.0,0.00013673,2]
[356075223,1741883440920,-500.0,0.00013673,2]
[356075224,1741883440932,-500.0,0.00013673,2]
[356075225,1741883440942,-500.0,0.00013673,2]
[356075226,1741883440952,-500.0,0.00013673,2]
[356075227,1741883440961,-500.0,0.00013673,2]
[356075228,1741883440970,-521.304846,0.00013673,2]
[356075229,1741883440981,-500.0,0.00013673,2]
[356075230,1741883440991,-500.0,0.00013673,2]
[356075231,1741883441001,-500.0,0.00013673,2]
[356075232,1741883441010,-500.0,0.00013673,2]
[356075233,1741883441020,-500.0,0.00013673,2]
[356075234,1741883441030,-500.0,0.00013673,2]
[356075235,1741883441039,-500.0,0.00013673,2]
[356075236,1741883441049,-500.0,0.00013673,2]
[356075237,1741883441059,-500.0,0.00013673,2]
[356075238,1741883441068,-500.0,0.00013673,2]
[356075239,1741883441078,-500.0,0.00013673,2]
[356075240,1741883441087,-500.0,0.00013673,2]
[356075241,1741883441102,-500.0,0.00013673,2]
[356075242,1741883441111,-500.0,0.00013673,2]
[356075243,1741883441121,-500.0,0.00013673,2]
[356075244,1741883441131,-500.0,0.00013673,2]
[356075245,1741883441140,-9991.72299524,0.00013698,2]
[356075246,1741883441149,-1189.95843527,0.00013698,2]
[356075247,1741883441159,-996.85,0.00013698,2]
[356075248,1741883441168,-500.0,0.00013698,2]
[356075249,1741883441177,-500.0,0.00013698,2]
[356075250,1741883441187,-500.0,0.00013698,2]
[356075251,1741883441197,-500.0,0.00013698,2]
[356075252,1741883441206,-500.0,0.00013698,2]
[356075253,1741883441216,-500.0,0.00013698,2]
[356075254,1741883441228,-408.93437889,0.00013698,2]
[356075255,1741883441237,-500.0,0.00013698,5]
[356075256,1741883441246,-559.13,0.00013698,2]
[356075257,1741883441257,-500.0,0.00013698,2]
[356075258,1741883441267,-500.0,0.00013698,2]
[356075259,1741883441276,-500.0,0.00013698,2]
[356075260,1741883441285,-500.0,0.00013698,2]
[356075261,1741883441295,-500.0,0.00013698,2]
[356075262,1741883441307,-500.0,0.00013698,2]
[356075263,1741883441317,-794.4,0.00013698,2]
[356075264,1741883441326,-500.0,0.00013698,2]
[356075265,1741883441335,-515.4370274,0.00013698,2]
[356075266,1741883441345,-500.0,0.00013698,2]
[356075267,1741883441355,-500.0,0.00013698,2]
[356075268,1741883441364,-500.0,0.00013698,2]
[356075269,1741883441374,-500.0,0.00013698,2]
[356075270,1741883441384,-730.75,0.00013698,2]
[356075271,1741883441393,-500.0,0.00013698,2]
[356075272,1741883441402,-500.0,0.00013698,2]
[356075273,1741883441413,-500.0,0.00013698,2]
[356075274,1741883441422,-1015.72,0.00013698,2]
[356075275,1741883441433,-500.0,0.00013698,2]
[356075276,1741883441442,-565.73871807,0.00013698,2]
[356075277,1741883441452,-500.0,0.00013698,2]
[356075278,1741883441462,-500.0,0.00013698,2]
[356075279,1741883441471,-500.0,0.00013698,2]
[356075280,1741883441481,-500.0,0.00013698,2]
[356075281,1741883441491,-500.0,0.00013698,2]
[356075282,1741883441500,-207.7499179,0.00013698,2]
[356075283,1741883441509,-500.0,0.00013698,2]
[356075284,1741883441519,-500.0,0.00013698,2]
[356075285,1741883441529,-500.0,0.00013698,2]
[356075286,1741883441538,-500.0,0.00013698,2]
[356075287,1741883441548,-500.0,0.00013698,2]
[356075288,1741883441558,-500.0,0.00013698,2]
[356075289,1741883441568,-500.0,0.00013698,2]
[356075290,1741883441577,-500.0,0.00013698,2]
[356075291,1741883441586,-1052.97,0.00013698,2]
[356075292,1741883441596,-482.54640646,0.00013698,2]
[356075293,1741883441606,-500.0,0.00013698,2]
[356075294,1741883441615,-500.0,0.00013698,2]
[356075295,1741883441624,-500.0,0.00013698,2]
[356075296,1741883441633,-500.0,0.00013698,2]
[356075297,1741883441643,-529.72,0.00013698,2]
[356075298,1741883441652,-500.0,0.00013698,2]
[356075299,1741883441661,-500.0,0.00013698,2]
[356075300,1741883441671,-500.0,0.00013698,2]
[356075301,1741883441680,-500.0,0.00013698,2]
[356075302,1741883441689,-643.55,0.00013698,2]
[356075303,1741883441699,-500.0,0.00013698,2]
[356075304,1741883441708,-500.0,0.00013698,2]
[356075305,1741883441718,-500.0,0.00013698,2]
[356075306,1741883441728,-500.0,0.00013698,2]
[356075307,1741883441741,-500.0,0.00013698,2]
[356075308,1741883441750,-500.0,0.00013698,2]
[356075309,1741883441759,-513.4260612,0.00013698,2]
[356075310,1741883441768,-1538.36,0.00013698,2]
[356075311,1741883441779,-500.0,0.00013698,2]
[356075312,1741883441788,-500.0,0.00013698,2]
[356075313,1741883441798,-500.0,0.00013698,2]
[356075314,1741883441810,-643.73,0.00013698,2]
[356075315,1741883441820,-500.0,0.00013698,2]
[356075316,1741883441830,-500.0,0.00013698,2]
[356075317,1741883441839,-500.0,0.00013698,2]